[Event "Olomouc Chess Summer Open 2022"]
[Site "Olomouc"]
[Date "2022.08.15"]
[Round "4.18"]
[White "Marek, Matyas"]
[Black "Zvolanek, Libor"]
[Result "1-0"]
[ECO "B05"]
[WhiteElo "2354"]
[BlackElo "2130"]
[Annotator "TA"]
[PlyCount "37"]
[EventDate "2022.08.14"]
[EventCountry "CZE"]
[SourceTitle "playchess.com"]
[Source "ChessBase"]
[SourceQuality "1"]
[TimeControl "40/5400+30:1800+30"]

{[%evp 13,37,58,71,56,102,98,97,101,94,102,91,86,88,88,199,177,239,241,244,256,287,272,550,537,532,466]} 1. e4 {[%emt 0:00:04][%cal Be2e4,Be4e5][%mdl 32]} Nf6 {[%emt 0:00:13]} 2. e5 {[%emt 0:00:05]} Nd5 {[%emt 0:00:26]} 3. d4 {[%emt 0:00:04]} d6 {[%emt 0:00:07]} 4. Nf3 {[%emt 0:00:03]} Bg4 {[%emt 0:01:23]} 5. Be2 {[%emt 0:00:43]} c6 {[%emt 0:00:06]} 6. c4 {[%emt 0:00:27]} Nb6 {[%emt 0:00:10]} 7. Nbd2 {[%emt 0:00:12]} N8d7 {[%emt 0:02:47]} 8. a4 {[%emt 0:00:51] [#] B05: Alekhine's Defence: 4 Nf3 Bg4.} Nc8 $146 {[%emt 0:06:00]} (8... dxe5 $14 9. a5 (9. dxe5 a5 $11) 9... Nc8) ({Predecessor:} 8... Bxf3 9. Nxf3 dxe5 10. a5 Nc8 11. Qb3 exd4 12. Qxb7 Rb8 13. Qxc6 e6 14. O-O Bc5 15. Rb1 Ne7 {½-½ (42) Kuiper,J (2555)-Hugentobler,P (2446) ICCF email 2008}) 9. Ng5 {[%emt 0:03:08]} Bxe2 {[%emt 0:03:24] [#]} 10. e6 $1 {[%emt 0:00:35][%csl Gg5][%cal Re6f7] White is better.} f6 {[%emt 0:00:01]} (10... Qa5 $2 {is a self mate.} 11. exf7+ Kd8 12. Ne6#) 11. exd7+ {[%emt 0:02:31]} Qxd7 {[%emt 0:05:53]} 12. Qxe2 {[%emt 0:01:41]} fxg5 {[%emt 0:00:02]} 13. Ne4 $36 {[%emt 0:00:09][%cal Bd2e4,Be4g5,Bg5e6][%mdl 2080] White is really pushing. White is more active.} h6 {[%emt 0:08:14]} (13... e5 $16) 14. Qh5+ $18 {[%emt 0:05:08]} Kd8 {[%emt 0:00:03]} (14... g6 $142 15. Qxg6+ Kd8) 15. Nxg5 $1 {[%emt 0:00:51] Threatens to win with Nf7+.} Kc7 {[%emt 0:01:29][%cal Og7g6] [#]} 16. d5 $1 {[%emt 0:01:24]} (16. Nf7 Qe6+ 17. Be3 g6 $11) 16... g6 {[%emt 0:04:00]} 17. Qh4 {[%emt 0:00:34] aiming for Ne6+.} e5 $2 {[%emt 0:00:05] [#]} (17... hxg5 18. Qxh8 Nb6) 18. Ne6+ $1 {[%emt 0:02:41]} Kb8 {[%emt 0:00:16]} 19. Qf6 $1 {[%emt 0:00:15][%csl LRf8,LRg6,LRh8] Black did not feel at home in the position after the opening.  Weighted Error Value: White=0.01 (flawless) /Black=0.54} 1-0

[Event "Olomouc Chess Summer Open 2022"]
[Site "Olomouc"]
[Date "2022.08.15"]
[Round "4.19"]
[White "Ibrahim, Emad Eldin"]
[Black "Al-Ali, Hussein Ali Hussein"]
[Result "0-1"]
[ECO "B23"]
[WhiteElo "2028"]
[BlackElo "2262"]
[Annotator "NA RC"]
[PlyCount "152"]
[EventDate "2022.08.14"]
[EventCountry "CZE"]
[SourceTitle "playchess.com"]
[Source "ChessBase"]
[SourceQuality "1"]
[TimeControl "40/5400+30:1800+30"]

1. e4 {[%emt 0:00:02]} c5 {[%emt 0:03:04]} 2. Nc3 {[%emt 0:00:08]} Nc6 {[%emt 0:00:06]} 3. f4 {[%emt 0:00:07]} e6 {[%emt 0:00:09]} 4. Nf3 {[%emt 0:00:07]} d5 {[%emt 0:00:15]} 5. Bb5 {[%emt 0:00:07]} a6 {[%emt 0:01:42]} 6. Bxc6+ {[%emt 0:00:13]} bxc6 {[%emt 0:00:05]} 7. O-O {[%emt 0:00:17]} c4 {[%emt 0:00:21]} 8. Qe1 {[%emt 0:04:52]} Nf6 {[%emt 0:00:34]} 9. b3 {[%emt 0:01:00]} cxb3 {[%emt 0:00:34]} 10. axb3 {[%emt 0:00:20]} Be7 {[%emt 0:01:50]} 11. e5 {[%emt 0:02:40]} Nd7 {[%emt 0:00:06]} 12. d4 {[%emt 0:00:17]} c5 {[%emt 0:02:54]} 13. Be3 {[%emt 0:02:05]} Bb7 {[%emt 0:01:11]} 14. Qg3 {[%emt 0:09:04]} g6 {[%emt 0:00:24]} 15. Qf2 {[%emt 0:02:12]} Qc7 {[%emt 0:00:27]} 16. Na4 {[%emt 0:01:25]} Rc8 {[%emt 0:00:56]} 17. c3 {[%emt 0:05:15]} O-O {[%emt 0:00:46]} 18. Rfc1 {[%emt 0:00:52]} f6 {[%emt 0:04:43]} 19. Qg3 {[%emt 0:01:22]} fxe5 {[%emt 0:00:32]} 20. fxe5 {[%emt 0:00:26]} Rf5 {[%emt 0:00:22]} 21. Nh4 {[%emt 0:03:05]} Bxh4 {[%emt 0:00:12]} 22. Qxh4 {[%emt 0:00:09]} Qd8 {[%emt 0:00:59]} 23. Qg4 {[%emt 0:02:26]} Bc6 {[%emt 0:02:32]} 24. Nb2 {[%emt 0:13:12]} cxd4 {[%emt 0:00:06]} 25. cxd4 {[%emt 0:00:40]} Bb5 {[%emt 0:00:04]} 26. h4 {[%emt 0:00:52]} Rxc1+ {[%emt 0:02:23]} 27. Rxc1 {[%emt 0:00:03]} Nf8 {[%emt 0:00:08]} 28. Bh6 {[%emt 0:11:08]} Qd7 {[%emt 0:03:16]} 29. Na4 {[%emt 0:06:19]} Kf7 {[%emt 0:14:55]} 30. Nb6 {[%emt 0:00:43]} Qd8 {[%emt 0:04:37]} 31. Nc8 {[%emt 0:00:24]} Bd7 {[%emt 0:02:38]} 32. Nd6+ {[%emt 0:00:12]} Kg8 {[%emt 0:00:12]} 33. Nxf5 {[%emt 0:01:33]} exf5 {[%emt 0:00:06]} 34. Qg5 {[%emt 0:02:12]} Qxg5 {[%emt 0:00:27]} 35. Bxg5 {[%emt 0:00:04]} Ne6 {[%emt 0:00:12]} 36. Be3 {[%emt 0:00:28]} f4 {[%emt 0:00:17]} 37. Bf2 {[%emt 0:00:12]} Kf7 {[%emt 0:00:18]} 38. Rc3 {[%emt 0:01:03]} h6 {[%emt 0:00:34]} 39. b4 {[%emt 0:01:32]} g5 {[%emt 0:01:32]} 40. hxg5 {[%emt 0:00:30]} hxg5 {[%emt 0:00:07]} 41. g3 {[%emt 0:30:16]} Kg6 {[%emt 0:30:13]} 42. g4 {[%emt 0:03:06]} Kf7 {[%emt 0:03:08]} 43. Kg2 {[%emt 0:01:22]} Ke7 {[%emt 0:02:07]} 44. Rh3 {[%emt 0:01:04]} Kf7 {[%emt 0:00:28]} 45. Rh7+ {[%emt 0:00:35]} Ng7 {[%emt 0:00:22]} 46. Kf3 {[%emt 0:01:24]} Ba4 {[%emt 0:01:41]} 47. Rh6 {[%emt 0:02:03]} Ne6 {[%emt 0:01:34]} 48. Ke2 {[%emt 0:00:12]} Bb5+ {[%emt 0:00:34]} 49. Kd2 {[%emt 0:00:16]} Ke7 {[%emt 0:01:57]} 50. Rh7+ {[%emt 0:00:17]} Kd8 {[%emt 0:00:18]} 51. Ra7 {[%emt 0:01:13]} Nc7 {[%emt 0:02:13]} 52. Rb7 {[%emt 0:01:37]} Bd7 {[%emt 0:01:11]} 53. Rb6 {[%emt 0:00:52]} Bxg4 {[%emt 0:00:18]} 54. Rg6 {[%emt 0:00:32]} Ne6 {[%emt 0:00:17]} 55. Rg8+ {[%emt 0:01:31]} Kc7 {[%emt 0:01:43]} 56. Kc3 {[%emt 0:01:02]} Be2 {[%emt 0:00:30]} 57. Kd2 {[%emt 0:00:42]} Bb5 {[%emt 0:00:07]} 58. Rg6 {[%emt 0:00:19]} Kd7 {[%emt 0:01:11]} 59. Kc3 {[%emt 0:02:00]} Ke7 {[%emt 0:01:17]} 60. Kd2 {[%emt 0:01:07]} Kd7 {[%emt 0:00:25]} 61. Kc3 {[%emt 0:00:28]} Be2 {[%emt 0:00:08]} 62. Kd2 {[%emt 0:01:18]} Bh5 {[%emt 0:01:58]} 63. Rh6 {[%emt 0:00:58]} Bf7 {[%emt 0:01:00]} 64. Rh7 {[%emt 0:00:40]} Ke7 {[%emt 0:00:16]} 65. Rh8 {[%emt 0:01:35]} Be8 {[%emt 0:00:31]} 66. Rh7+ {[%emt 0:00:23]} Kf8 {[%emt 0:00:35]} 67. Ke1 {[%emt 0:01:35]} Bf7 {[%emt 0:00:30]} 68. Rh8+ {[%emt 0:02:22]} Ke7 {[%emt 0:00:56]} 69. Ke2 {[%emt 0:00:46]} Bg6 {[%emt 0:00:53]} 70. Ra8 {[%emt 0:00:39]} Nc7 {[%emt 0:00:37]} 71. Ra7 {[%emt 0:00:18]} Kd7 {[%emt 0:00:27]} 72. e6+ {[%emt 0:05:36]} Kc6 {[%emt 0:00:20]} 73. Kf3 {[%emt 0:00:29]} Bh5+ {[%emt 0:00:36]} 74. Kg2 {[%emt 0:00:33]} Kb6 {[%emt 0:00:15]} 75. Rxc7 {[%emt 0:01:15]} Kxc7 {[%emt 0:00:05]} 76. Be1 {[%emt 0:00:34]} Kd6 {[%emt 0:00:06]} 0-1

[Event "Olomouc Chess Summer Open 2022"]
[Site "Olomouc"]
[Date "2022.08.15"]
[Round "4.20"]
[White "Houska, Jiri"]
[Black "Lehmann, Christoph"]
[Result "1-0"]
[ECO "D26"]
[WhiteElo "2220"]
[BlackElo "1916"]
[Annotator "TA"]
[PlyCount "53"]
[EventDate "2022.08.14"]
[EventCountry "CZE"]
[SourceTitle "playchess.com"]
[Source "ChessBase"]
[SourceQuality "1"]
[TimeControl "40/5400+30:1800+30"]

{[%evp 19,53,19,22,1,31,25,28,30,50,22,24,23,243,262,1222,1215,29980,29981,29981,29982,29982,29983,29983,29984,29984,29985,29985,29986,29986,29987,29987,29988,29988,29989,29996,29997]} 1. d4 {[%emt 0:00:18]} d5 {[%emt 0:00:15]} 2. c4 {[%emt 0:00:13]} dxc4 {[%emt 0:00:56]} 3. Nf3 {[%emt 0:00:05]} Nf6 {[%emt 0:01:30]} 4. e3 {[%emt 0:00:19]} c5 {[%emt 0:03:15]} 5. Bxc4 {[%emt 0:01:07]} e6 {[%emt 0:02:47]} 6. O-O {[%emt 0:00:15]} Nc6 {[%emt 0:01:54]} 7. Bb3 {[%emt 0:04:23]} Be7 {[%emt 0:08:31]} 8. Nc3 {[%emt 0:01:47]} cxd4 {[%emt 0:02:45]} 9. exd4 {[%emt 0:00:06]} O-O {[%emt 0:03:17]} 10. Re1 {[%emt 0:01:07]} a6 {[%emt 0:02:44]} 11. h4 {[%emt 0:02:44] [#] D27: Queen's Gambit Accepted: Classical main line: 7 e4!? and 7 a4.} b5 $146 {[%emt 0:08:06]} ({Predecessor:} 11... Na5 12. Bc2 b5 13. Ne5 Bb7 14. h5 Nc6 15. Nxc6 Bxc6 16. Bg5 g6 17. hxg6 hxg6 18. Qd3 Qd6 19. d5 exd5 20. Qd4 Bd8 21. Bb3 a5 22. Bh6 Re8 23. Rxe8+ Nxe8 24. Bxd5 {½-½ (24) Joppich,U (2464)-Lins,T (2460) GER email 2019}) 12. d5 {[%emt 0:00:49]} exd5 {[%emt 0:02:06]} 13. Nxd5 {[%emt 0:00:06] White has an edge.} Nxd5 {[%emt 0:01:30]} 14. Bxd5 {[%emt 0:00:30]} Bb7 {[%emt 0:02:26]} 15. Bf4 {[%emt 0:02:55]} Bf6 $2 {[%emt 0:10:11] [#]} (15... h6 $11 {and Black is okay.}) 16. Bd6 $1 $18 {[%emt 0:04:55]} Re8 $2 {[%emt 0:01:45] [#]} (16... Na5) 17. Bxf7+ $1 {[%emt 0:04:26][%mdl 512]} Kxf7 {[%emt 0:02:13]} (17... Kh8 18. Rxe8+) 18. Qd5+ {[%emt 0:00:20] White mates.} Kg6 {[%emt 0:01:14]} 19. Rxe8 {[%emt 0:07:05]} Qxe8 {[%emt 0:09:55]} 20. h5+ {[%emt 0:01:11][%cal Bh4h5,Bh5h6][%mdl 32]} Kh6 {[%emt 0:00:07]} 21. Bf4+ {[%emt 0:00:19]} g5 {[%emt 0:00:31]} 22. Bxg5+ {[%emt 0:01:18]} Kg7 {[%emt 0:00:31]} 23. h6+ {[%emt 0:04:26][%mdl 64] Deflection} Kf8 {[%emt 0:01:49]} 24. Bxf6 {[%emt 0:00:28]} Qf7 {[%emt 0:04:27]} 25. Qd6+ {[%emt 0:10:28]} Kg8 {[%emt 0:01:49]} 26. Ng5 {[%emt 0:03:30]} Qc4 {[%emt 0:02:52]} 27. Qd7 {[%emt 0:04:17][%csl LRb7,LRh7] White took control after the opening.  Weighted Error Value: White=0.02 (flawless) /Black=0.68} 1-0

[Event "Olomouc Chess Summer Open 2022"]
[Site "Olomouc"]
[Date "2022.08.16"]
[Round "5.16"]
[White "Muzika, Paul"]
[Black "Schletter, Felix"]
[Result "1-0"]
[ECO "B12"]
[WhiteElo "2072"]
[BlackElo "1975"]
[Annotator "NA RC"]
[PlyCount "63"]
[EventDate "2022.08.14"]
[EventCountry "CZE"]
[SourceTitle "playchess.com"]
[Source "ChessBase"]
[SourceQuality "1"]
[TimeControl "40/5400+30:1800+30"]

1. e4 {[%emt 0:00:19]} c6 {[%emt 0:00:02]} 2. d4 {[%emt 0:00:45]} d5 {[%emt 0:00:07]} 3. e5 {[%emt 0:00:11]} c5 {[%emt 0:00:04]} 4. dxc5 {[%emt 0:00:27]} e6 {[%emt 0:00:23]} 5. a3 {[%emt 0:00:04]} Bxc5 {[%emt 0:00:07]} 6. b4 {[%emt 0:00:05]} Be7 {[%emt 0:00:11]} 7. Nf3 {[%emt 0:00:19]} Nd7 {[%emt 0:00:04]} 8. Bb2 {[%emt 0:08:51]} a5 {[%emt 0:00:33]} 9. b5 {[%emt 0:00:17]} Nh6 {[%emt 0:00:07]} 10. c4 {[%emt 0:01:45]} dxc4 {[%emt 0:18:23]} 11. Bxc4 {[%emt 0:05:00]} Nb6 {[%emt 0:03:37]} 12. Qxd8+ {[%emt 0:00:36]} Bxd8 {[%emt 0:03:32]} 13. Bb3 {[%emt 0:00:38]} a4 {[%emt 0:01:15]} 14. Ba2 {[%emt 0:00:10]} Bd7 {[%emt 0:00:30]} 15. Nc3 {[%emt 0:00:12]} Ra5 {[%emt 0:05:46]} 16. Nd4 {[%emt 0:06:09]} Nf5 {[%emt 0:04:48]} 17. Ne4 {[%emt 0:01:05]} Be7 {[%emt 0:02:43]} 18. Bc3 {[%emt 0:12:57]} Nxd4 {[%emt 0:02:34]} 19. Bxa5 {[%emt 0:01:00]} Nc2+ {[%emt 0:00:08]} 20. Kd2 {[%emt 0:00:14]} Nxa1 {[%emt 0:00:07]} 21. Bxb6 {[%emt 0:06:13]} Nb3+ {[%emt 0:01:05]} 22. Bxb3 {[%emt 0:00:09]} axb3 {[%emt 0:00:05]} 23. a4 {[%emt 0:00:25]} f5 {[%emt 0:11:15]} 24. Nc5 {[%emt 0:08:42]} Bxc5 {[%emt 0:01:11]} 25. Bxc5 {[%emt 0:00:06]} Kf7 {[%emt 0:00:10]} 26. Kc3 {[%emt 0:01:02]} Rc8 {[%emt 0:00:55]} 27. Kb4 {[%emt 0:00:05]} Ke8 {[%emt 0:03:55]} 28. Rb1 {[%emt 0:00:33]} Kd8 {[%emt 0:03:55]} 29. Rxb3 {[%emt 0:00:07]} Kc7 {[%emt 0:00:25]} 30. Rd3 {[%emt 0:03:46]} Rd8 {[%emt 0:01:03]} 31. a5 {[%emt 0:00:38]} Kc8 {[%emt 0:00:08]} 32. Bd6 {[%emt 0:01:28]} 1-0

[Event "Olomouc Chess Summer Open 2022"]
[Site "Olomouc"]
[Date "2022.08.16"]
[Round "5.17"]
[White "Al-Ali, Hussein Ali Hussein"]
[Black "Marek, Matyas"]
[Result "1/2-1/2"]
[ECO "C42"]
[WhiteElo "2262"]
[BlackElo "2354"]
[Annotator "TA"]
[PlyCount "29"]
[EventDate "2022.08.14"]
[EventCountry "CZE"]
[SourceTitle "playchess.com"]
[Source "ChessBase"]
[SourceQuality "1"]
[TimeControl "40/5400+30:1800+30"]

{[%evp 9,29,0,-2,-16,-12,-16,-2,-33,-20,-45,-35,-48,-44,-42,-12,-15,-7,-17,-8,-14,-20,-63]} 1. e4 {[%emt 0:00:03]} e5 {[%emt 0:00:05]} 2. Nf3 {[%emt 0:00:08]} Nf6 {[%emt 0:00:06]} 3. Nc3 {[%emt 0:00:09]} Bb4 {[%emt 0:00:05]} 4. a3 {[%emt 0:00:53]} Bxc3 {[%emt 0:00:41]} 5. dxc3 {[%emt 0:00:06]} d6 {[%emt 0:00:05]} 6. Nd2 {[%emt 0:00:45] C42: Petroff Defence: 3 Nxe5 and unusual White 3rd moves.} Be6 {[%emt 0:02:00]} 7. c4 {[%emt 0:05:09] [#]} Nbd7 $146 {[%emt 0:02:29]} ({Predecessor:} 7... c6 8. Bd3 Nbd7 9. O-O d5 10. cxd5 cxd5 11. exd5 Bxd5 12. Qe2 O-O 13. c4 Bc6 {1-0 (54) Klein,J (1976)-Zimmer,B (1221) Saarlouis 2002}) 8. c3 {[%emt 0:06:14]} O-O {[%emt 0:03:55]} 9. Be2 {[%emt 0:00:14]} a5 {[%emt 0:01:08]} 10. a4 {[%emt 0:00:16]} Nc5 {[%emt 0:03:13]} 11. Qc2 {[%emt 0:01:01]} Qd7 {[%emt 0:00:36]} 12. O-O {[%emt 0:00:57] The position is equal.} Qc6 {[%emt 0:00:46][%cal Rc5e4]} 13. Bf3 {[%emt 0:08:17]} Qb6 {[%emt 0:06:07]} 14. Rb1 {[%emt 0:04:42]} Nfd7 {[%emt 0:02:09]} 15. b4 {[%emt 0:08:45] Weighted Error Value: White=0.10 (very precise) /Black=0.08 (flawless)} 1/2-1/2

[Event "Olomouc Chess Summer Open 2022"]
[Site "Olomouc"]
[Date "2022.08.16"]
[Round "5.18"]
[White "Fizer, Marek"]
[Black "Houska, Jiri"]
[Result "0-1"]
[ECO "B76"]
[WhiteElo "1998"]
[BlackElo "2220"]
[Annotator "NA RC"]
[PlyCount "60"]
[EventDate "2022.08.14"]
[EventCountry "CZE"]
[SourceTitle "playchess.com"]
[Source "ChessBase"]
[SourceQuality "1"]
[TimeControl "40/5400+30:1800+30"]

1. e4 {[%emt 0:00:03]} c5 {[%emt 0:01:08]} 2. Nf3 {[%emt 0:00:11]} d6 {[%emt 0:00:07]} 3. d4 {[%emt 0:00:14]} cxd4 {[%emt 0:00:19]} 4. Nxd4 {[%emt 0:00:10]} Nf6 {[%emt 0:00:03]} 5. Nc3 {[%emt 0:00:12]} g6 {[%emt 0:00:04]} 6. Be3 {[%emt 0:00:21]} Bg7 {[%emt 0:00:03]} 7. f3 {[%emt 0:00:12]} O-O {[%emt 0:00:04]} 8. Qd2 {[%emt 0:00:35]} Nc6 {[%emt 0:02:36]} 9. g4 {[%emt 0:00:25]} Be6 {[%emt 0:00:29]} 10. Nxe6 {[%emt 0:00:25]} fxe6 {[%emt 0:00:05]} 11. O-O-O {[%emt 0:00:37]} Ne5 {[%emt 0:00:55]} 12. Be2 {[%emt 0:01:11]} Qc8 {[%emt 0:01:02]} 13. h4 {[%emt 0:00:41]} Nfd7 {[%emt 0:00:55]} 14. f4 {[%emt 0:01:33]} Nc4 {[%emt 0:01:18]} 15. Bxc4 {[%emt 0:00:22]} Qxc4 {[%emt 0:00:03]} 16. e5 {[%emt 0:00:32]} d5 {[%emt 0:16:41]} 17. Bd4 {[%emt 0:02:28]} Rf7 {[%emt 0:16:00]} 18. h5 {[%emt 0:03:26]} Raf8 {[%emt 0:02:54]} 19. f5 {[%emt 0:02:51]} gxf5 {[%emt 0:12:23]} 20. gxf5 {[%emt 0:18:53]} Rxf5 {[%emt 0:02:02]} 21. h6 {[%emt 0:00:30]} Bxe5 {[%emt 0:02:50]} 22. Qg2+ {[%emt 0:00:50]} Kf7 {[%emt 0:00:16]} 23. Bxe5 {[%emt 0:00:17]} Nxe5 {[%emt 0:00:28]} 24. Rhf1 {[%emt 0:10:38]} Ke8 {[%emt 0:03:54]} 25. Rxf5 {[%emt 0:00:59]} Rxf5 {[%emt 0:01:04]} 26. Qg8+ {[%emt 0:10:47]} Kd7 {[%emt 0:06:59]} 27. Nxd5 {[%emt 0:03:34]} exd5 {[%emt 0:04:29]} 28. Rxd5+ {[%emt 0:00:19]} Kc7 {[%emt 0:00:25]} 29. Qd8+ {[%emt 0:01:03]} Kc6 {[%emt 0:00:02]} 30. Rd1 {[%emt 0:00:39]} Rf1 {[%emt 0:07:23]} 0-1

[Event "Olomouc Chess Summer Open 2022"]
[Site "Olomouc"]
[Date "2022.08.16"]
[Round "5.19"]
[White "Szkoludek, Sebastian"]
[Black "Cagasik, Tomas"]
[Result "0-1"]
[ECO "A47"]
[WhiteElo "1992"]
[BlackElo "2143"]
[Annotator "NA RC"]
[PlyCount "46"]
[EventDate "2022.08.14"]
[EventCountry "CZE"]
[SourceTitle "playchess.com"]
[Source "ChessBase"]
[SourceQuality "1"]
[TimeControl "40/5400+30:1800+30"]

1. d4 {[%emt 0:00:01]} b6 {[%emt 0:02:27]} 2. Nf3 {[%emt 0:00:09]} Bb7 {[%emt 0:00:07]} 3. g3 {[%emt 0:00:04]} Nf6 {[%emt 0:00:16]} 4. Bg2 {[%emt 0:00:05]} c5 {[%emt 0:00:49]} 5. O-O {[%emt 0:00:06]} g6 {[%emt 0:01:48]} 6. c4 {[%emt 0:00:17]} cxd4 {[%emt 0:01:03]} 7. Nxd4 {[%emt 0:00:09]} Bxg2 {[%emt 0:02:37]} 8. Kxg2 {[%emt 0:00:05]} Qc8 {[%emt 0:00:17]} 9. b3 {[%emt 0:00:09]} Bg7 {[%emt 0:00:56]} 10. Bb2 {[%emt 0:00:06]} Qb7+ {[%emt 0:02:58]} 11. Kg1 {[%emt 0:00:28]} d6 {[%emt 0:17:35]} 12. Nc3 {[%emt 0:02:41]} Nbd7 {[%emt 0:05:45]} 13. Re1 {[%emt 0:07:59]} h5 {[%emt 0:09:41]} 14. e4 {[%emt 0:15:24]} h4 {[%emt 0:00:52]} 15. Nd5 {[%emt 0:14:09]} hxg3 {[%emt 0:04:46]} 16. hxg3 {[%emt 0:01:55]} Ne5 {[%emt 0:02:11]} 17. Nb5 {[%emt 0:26:09]} Nxd5 {[%emt 0:10:12]} 18. exd5 {[%emt 0:05:34]} Qd7 {[%emt 0:01:29]} 19. Bxe5 {[%emt 0:01:44]} Bxe5 {[%emt 0:01:10]} 20. Rc1 {[%emt 0:00:21]} a6 {[%emt 0:00:38]} 21. Na3 {[%emt 0:02:22]} Bb2 {[%emt 0:06:36]} 22. Nc2 {[%emt 0:01:42]} Bxc1 {[%emt 0:01:32]} 23. Qxc1 {[%emt 0:00:18]} Qh3 {[%emt 0:00:24]} 0-1

[Event "Olomouc Chess Summer Open 2022"]
[Site "Olomouc"]
[Date "2022.08.16"]
[Round "5.20"]
[White "Soban, Jaroslav"]
[Black "Hrabal, Matej"]
[Result "1-0"]
[ECO "A36"]
[WhiteElo "2101"]
[BlackElo "1950"]
[Annotator "NA RC"]
[PlyCount "97"]
[EventDate "2022.08.14"]
[EventCountry "CZE"]
[SourceTitle "playchess.com"]
[Source "ChessBase"]
[SourceQuality "1"]
[TimeControl "40/5400+30:1800+30"]

1. c4 {[%emt 0:00:09]} c5 {[%emt 0:00:05]} 2. Nc3 {[%emt 0:00:08]} Nc6 {[%emt 0:00:05]} 3. g3 {[%emt 0:00:07]} g6 {[%emt 0:00:07]} 4. Bg2 {[%emt 0:00:07]} Bg7 {[%emt 0:00:07]} 5. d3 {[%emt 0:00:18]} d6 {[%emt 0:00:19]} 6. e4 {[%emt 0:01:30]} e5 {[%emt 0:02:39]} 7. Nge2 {[%emt 0:00:46]} Nge7 {[%emt 0:01:35]} 8. O-O {[%emt 0:00:09]} O-O {[%emt 0:01:06]} 9. f4 {[%emt 0:01:47]} Nd4 {[%emt 0:05:19]} 10. Nxd4 {[%emt 0:00:20]} cxd4 {[%emt 0:00:23]} 11. Ne2 {[%emt 0:01:56]} Bg4 {[%emt 0:08:08]} 12. h3 {[%emt 0:01:03]} Bd7 {[%emt 0:01:06]} 13. b3 {[%emt 0:08:53]} Rb8 {[%emt 0:16:30]} 14. a4 {[%emt 0:11:44]} f5 {[%emt 0:02:56]} 15. Ra2 {[%emt 0:06:53]} a6 {[%emt 0:06:12]} 16. b4 {[%emt 0:06:10]} Be6 {[%emt 0:13:48]} 17. fxe5 {[%emt 0:22:08]} dxe5 {[%emt 0:01:53]} 18. Rc2 {[%emt 0:00:46]} fxe4 {[%emt 0:02:16]} 19. Rxf8+ {[%emt 0:00:30]} Bxf8 20. Bxe4 {[%emt 0:02:02]} Bxh3 {[%emt 0:02:46]} 21. Bg5 {[%emt 0:00:11]} Qd7 {[%emt 0:01:19]} 22. Kh2 {[%emt 0:06:12]} Bf5 {[%emt 0:02:05]} 23. Qh1 {[%emt 0:05:16]} Qxa4 {[%emt 0:11:48]} 24. Bxf5 {[%emt 0:02:56]} gxf5 {[%emt 0:14:29]} 25. Bxe7 {[%emt 0:01:42]} Qc6 {[%emt 0:05:25]} 26. Bxf8 {[%emt 0:05:36]} Qxh1+ {[%emt 0:00:07]} 27. Kxh1 {[%emt 0:00:05]} Kxf8 {[%emt 0:00:12]} 28. Nc1 {[%emt 0:02:12]} Kf7 {[%emt 0:00:40]} 29. Nb3 {[%emt 0:01:31]} b6 {[%emt 0:00:52]} 30. Kg2 {[%emt 0:02:47]} Kf6 {[%emt 0:00:17]} 31. Kf3 {[%emt 0:02:00]} Re8 {[%emt 0:00:19]} 32. Ra2 {[%emt 0:03:47]} Ra8 {[%emt 0:01:02]} 33. Rh2 {[%emt 0:01:44]} Kg6 {[%emt 0:00:17]} 34. Re2 {[%emt 0:00:21]} Kf6 {[%emt 0:00:15]} 35. Ra2 {[%emt 0:00:21]} Ra7 {[%emt 0:00:24]} 36. b5 {[%emt 0:01:12]} a5 {[%emt 0:00:16]} 37. c5 {[%emt 0:00:09]} a4 {[%emt 0:01:07]} 38. Nd2 {[%emt 0:00:51]} bxc5 {[%emt 0:00:18]} 39. b6 {[%emt 0:00:30]} Rb7 {[%emt 0:00:33]} 40. Nc4 {[%emt 0:00:07]} Re7 {[%emt 0:00:52]} 41. Rb2 {[%emt 0:33:02]} Rb7 {[%emt 0:01:31]} 42. Ra2 {[%emt 0:00:00]} Re7 {[%emt 0:12:50]} 43. Rxa4 {[%emt 0:00:00]} e4+ {[%emt 0:00:16]} 44. Ke2 {[%emt 0:00:00]} exd3+ {[%emt 0:03:44]} 45. Kd2 {[%emt 0:00:00]} f4 {[%emt 0:11:06]} 46. gxf4 {[%emt 0:00:00]} Rg7 {[%emt 0:00:18]} 47. Ra6 {[%emt 0:00:00]} Rg2+ {[%emt 0:01:58]} 48. Kxd3 {[%emt 0:00:00]} Rg3+ {[%emt 0:00:55]} 49. Ke4 {[%emt 0:00:00]} 1-0